Cogmind - Beta 9.6 @@@ ROGUE MODE // 2020.07.11 @ 23:52:53 Player: GGOBC-006 Result: Destroyed by S-27 Virus with Autogun Performance ------------- Evolutions (4) 2000 Regions Visited (12) 2400 Robots Destroyed (184) 920 Value Destroyed (5054) 5054 Prototype IDs (18) 360 Alien Tech Used (0) 0 Bonus (1020) 1020 TOTAL SCORE: 11754 Bonus ------- High Alert Combat Kills 495 Follower Combat Kills 783 Entered Garrisons 200 Used RIF Installer 500 Met Data Miner 300 Friendly Fire -1258 Cogmind --------- Core Integrity 0/850 Matter 234/300 Energy 340/340 System Corruption 3% Temperature Cool (0) Movement Treading (160) Location -6/Extension Parts ------- > --- POWER (2) -------- Improved Deuterium Engine Light Angular Momentum Engine > --- PROPULSION (4) --- Light Treads Light Treads Light Treads Improved Treads > --- UTILITY (7) ------ Improved Heat Sink Improved Heat Sink Improved Heat Sink Armor Integrity Analyzer Improved Light Armor Plating > --- WEAPON (2) ------- Flak Gun Bore Cannon > --- INVENTORY (4) ---- Improved Deuterium Engine Improved Heat Sink Flak Gun Heavy Flak Cannon Peak State ------------ > --- POWER ------------ Improved Deuterium Engine Light Fission Core > --- PROPULSION ------- Improved Titanium Leg Flexi-carbon Leg Flexi-carbon Leg Flexi-carbon Leg > --- UTILITY ---------- Advanced Power Amplifier Improved Heat Sink Improved Targeting Computer Advanced Targeting Computer Improved Light Armor Plating Makeshift Armor Plating Advanced Force Field > --- WEAPON ----------- Plasma Rifle Force Rifle > --- INVENTORY -------- Improved Hardlight Generator Heavy Flak Cannon Heavy Flak Cannon Heavy Rocket Launcher [Rating: 69] Favorites ----------- Power Improved Deuterium Engine Engine Improved Deuterium Engine Power Core Neutrino Core Propulsion Wheel Treads Light Treads Leg Aluminum Leg Wheel Wheel Utility Improved Heat Sink Device Improved Heat Sink Processor Improved Targeting Computer Protection Hardened Medium Armor Plating Weapon Improved EM Shotgun Energy Gun Improved EM Shotgun Energy Cannon Advanced Beam Cannon Ballistic Gun Flak Gun Ballistic Cannon Bore Cannon Launcher Missile Launcher Special Weapon Remote Datajack Slashing Weapon Phasing Sabre Special Melee Weapon Datajack Build | -11 -10 -9 -9 -9 -9 -7 -7 -7 -7 -6 -6 -6 ------- Run | Scr Mat Mat Sto Gar Rec Fac Low Low Dat Pro Fac Ext Slots Evolved 8 | . . 2 . . . 4 . . . . 2 . Power 1 | . . . . . . 1 . . . . . . Propulsion 2 | . . 1 . . . 1 . . . . . . Utility 5 | . . 1 . . . 2 . . . . 2 . Weapon . | . . . . . . . . . . . . . Parts Attached 177 | 10 11 16 31 9 16 16 2 17 . 4 20 25 Power 27 | 1 3 2 5 1 . 3 . 5 . . 3 4 Engine 22 | 1 3 2 4 1 . 2 . 3 . . 2 4 Core 5 | . . . 1 . . 1 . 2 . . 1 . Reactor . | . . . . . . . . . . . . . Propulsion 49 | 4 2 1 5 4 9 4 . 5 . 3 5 7 Treads 4 | . . . . . . . . . . . . 4 Leg 18 | . . . . 4 . . . 3 . 3 5 3 Wheel 27 | 4 2 1 5 . 9 4 . 2 . . . . Hover . | . . . . . . . . . . . . . Flight . | . . . . . . . . . . . . . Utility 46 | 3 2 4 3 2 3 7 2 5 . . 6 9 Device 25 | 1 1 . 2 2 1 2 1 4 . . 4 7 Storage . | . . . . . . . . . . . . . Processor 6 | 2 1 . . . . 2 . . . . . 1 Hackware . | . . . . . . . . . . . . . Protection 15 | . . 4 1 . 2 3 1 1 . . 2 1 Artifact . | . . . . . . . . . . . . . Weapon 55 | 2 4 9 18 2 4 2 . 2 . 1 6 5 Energy Gun 33 | 1 4 6 13 2 1 2 . 1 . . 3 . Energy Cannon 1 | . . . 1 . . . . . . . . . Ballistic Gun 11 | 1 . 2 2 . 2 . . 1 . 1 . 2 Ballistic Cannon 4 | . . . 1 . . . . . . . 2 1 Launcher 3 | . . 1 1 . . . . . . . 1 . Special Weapon 1 | . . . . . . . . . . . . 1 Impact Weapon . | . . . . . . . . . . . . . Slashing Weapon 1 | . . . . . . . . . . . . 1 Piercing Weapon . | . . . . . . . . . . . . . Special Melee Weapon 1 | . . . . . 1 . . . . . . . Unidentified Prototypes 10 | . . 2 5 . . 1 . 2 . . . . Parts Lost 43 | . 1 . 1 8 . 1 1 8 . 2 13 8 Power 5 | . . . . . . . . 2 . . 3 . Propulsion 14 | . . . . 3 . 1 1 3 . . 3 3 Utility 17 | . 1 . 1 3 . . . 1 . 1 5 5 Weapon 7 | . . . . 2 . . . 2 . 1 2 . Highest Loss Streak 12 | . 1 . 1 5 . 1 1 3 . 2 12 4 Average Slot Usage (%) 91 | . 96 94 99 86 98 93 94 83 100 95 94 75 Engine 10 | . 14 11 8 11 11 7 7 13 7 7 8 10 Core 1 | . . . 2 . . 5 7 1 7 7 1 . Treads 2 | . . . . . . . . . . . . 19 Leg 6 | . . . . 13 2 . . 5 23 26 24 1 Wheel 17 | . 28 29 33 14 30 28 24 11 7 3 . . Device 15 | . 10 11 11 21 16 10 11 16 23 20 19 21 Processor 7 | . 14 . . . . 6 15 15 15 15 13 7 Protection 10 | . . 20 21 3 14 17 10 5 . . 11 1 Energy Gun 13 | . 27 21 21 21 15 11 15 10 7 4 4 . Ballistic Gun 2 | . . . . . 6 2 . 2 7 7 6 4 Naked Turns . | . . . . . . . . . . . . . Heaviest Build 64 | 10 10 35 33 25 25 41 40 51 51 51 64 40 Greatest Support 83 | 20 20 20 32 32 38 46 44 35 35 60 80 83 Greatest Overweight (x) 11 | . . 1 1 3 1 1 1 11 1 1 1 5 Average Overweight (x) . | . . . . . . . . 1 1 . . . Largest Inventory Capacity 4 | 4 4 4 4 4 4 4 4 4 4 4 4 4 Average Capacity 4 | 4 4 4 4 4 4 4 4 4 4 4 4 4 Most Carried 4 | 4 4 4 4 4 4 4 4 4 4 4 4 4 Average Carried 3 | 3 3 3 3 2 3 3 4 3 4 4 3 3 Final Capacity 4 | 4 4 4 4 4 4 4 4 4 4 4 4 4 Final Carried 4 | 4 4 4 4 2 3 4 4 4 4 4 4 4 Class Distribution -------------------- 47% | Scavenger-Mutant 38% | Mutant 14% | Commander-Mutant Dominant Class ---------------- Scavenger-Mutant | -10/Materials Mutant | -9/Materials Mutant | -9/Storage Scavenger-Mutant | -9/Garrison Commander-Mutant | -9/Recycling Commander-Mutant | -7/Factory Mutant | -7/Lower Caves Mutant | -7/Lower Caves Scavenger-Mutant | -7/Data Miner Scavenger-Mutant | -6/Proximity Caves Scavenger-Mutant | -6/Factory Scavenger-Mutant | -6/Extension Resources | -11 -10 -9 -9 -9 -9 -7 -7 -7 -7 -6 -6 -6 ----------- Run | Scr Mat Mat Sto Gar Rec Fac Low Low Dat Pro Fac Ext Matter Collected 3119 | 387 110 104 407 70 172 144 15 365 . 151 557 637 Remotely . | . . . . . . . . . . . . . Salvage Created 7359 | 234 355 274 2080 589 220 229 131 825 . 127 1709 586 Parts 401 | 26 29 23 126 37 24 11 9 36 . 6 57 17 Haulers Intercepted 12 | . 1 2 6 . . . . 1 . . 2 . Recyclers Shooed 8 | . . . 4 . . . . . . . 4 . Parts Field Recycled . | . . . . . . . . . . . . . Retrieved Matter . | . . . . . . . . . . . . . Parts Self-Destructed 73 | . . . . . . . 7 55 . 11 . . Prevented 8 | . . . . . . . . 8 . . . . Kills | -11 -10 -9 -9 -9 -9 -7 -7 -7 -7 -6 -6 -6 ------- Run | Scr Mat Mat Sto Gar Rec Fac Low Low Dat Pro Fac Ext Combat Hostiles Destroyed 104 | . 6 5 25 18 8 3 2 17 . 4 12 4 Melee 3 | . . . . . . . . . . . . 3 Guns 76 | . 6 3 22 10 7 3 2 14 . 4 5 . Cannons 5 | . . . . . . . . . . . 4 1 AOE 20 | . . 2 3 8 1 . . 3 . . 3 . Classes Destroyed 16 | 3 3 4 3 . . . 1 1 . . 1 . Worker 18 | 1 1 1 7 . . 1 . . . . 6 1 Builder 15 | . 2 1 6 . . . 1 . . . 5 . Tunneler 7 | 7 . . . . . . . . . . . . Hauler 12 | . 1 2 6 . . . . 1 . . 2 . Recycler 14 | 1 . . 5 . . . . . . . 6 2 Minesweeper 1 | . . . . . . . . 1 . . . . Mechanic 1 | . . 1 . . . . . . . . . . Operator 2 | . . 1 . . . . . . . . 1 . Drone 13 | . . . 5 . 8 . . . . . . . Watcher 3 | . . . 1 . . . . . . . 1 1 Swarmer 30 | . . 4 6 7 . . . 9 . 3 1 . Grunt 48 | . 6 . 14 12 . 1 1 7 . 1 4 2 Duelist 2 | . . . 1 . . 1 . . . . . . Sentry 11 | . . 1 4 . . 1 . 1 . . 2 2 Hunter 4 | . . . . . . . . . . . 4 . Programmer 2 | . . . . . . . 1 . . . 1 . Butcher 1 | . . . . . . . . . . . . 1 Best Kill Streak 10 | 6 3 5 10 6 3 1 2 3 . 3 6 3 Combat Bots Only 7 | . 2 5 7 6 3 1 2 3 . 3 3 1 Max Kills in Single Turn 4 | 2 1 2 4 3 2 1 1 1 . 2 3 2 Gunslinging 1 | . . . 1 . . . . . . . . . Exploded 2 | . . 2 2 2 1 . . 1 . . 2 . Melee 1 | . . . . . . . . . . . . 1 Uniques/NPCs Destroyed 1 | . . . 1 . . . . . . . . . 01-MTF (-9/Storage) Combat | -11 -10 -9 -9 -9 -9 -7 -7 -7 -7 -6 -6 -6 -------- Run | Scr Mat Mat Sto Gar Rec Fac Low Low Dat Pro Fac Ext Damage Taken 7434 | 40 253 210 981 616 . 146 221 1251 . 214 2202 1300 Core 1539 | . 117 10 100 78 . 6 32 291 . 39 545 321 Absorbed by Shields 1503 | . . . . . . . . 460 . 212 831 . Core Remaining (%) 63 | 100 53 . . . 53 . . . . 47 . . Volleys Fired 456 | 29 58 26 96 31 29 13 10 63 . 12 60 29 Largest 2 | 2 2 2 2 2 2 2 2 2 . 2 2 2 Hottest 160 | 60 100 90 95 95 110 105 65 105 . 97 160 85 Shots Fired 816 | 58 103 46 181 62 54 21 20 94 . 19 113 45 Gun 740 | 58 103 44 181 62 54 21 20 94 . 19 68 16 Cannon 53 | . . . . . . . . . . . 37 16 Launcher 10 | . . 2 . . . . . . . . 8 . Special 13 | . . . . . . . . . . . . 13 Kinetic 199 | 29 . 4 2 . 3 1 . 37 . 12 79 32 Thermal 231 | . 103 2 . 9 26 12 10 36 . 7 26 . Explosive 10 | . . 2 . . . . . . . . 8 . Electromagnetic 363 | 29 . 38 179 53 25 8 10 21 . . . . Robot Hit Streak 20 | 4 13 10 13 17 9 8 13 20 . 8 20 17 Robot Miss Streak 13 | 2 1 6 6 5 13 1 1 5 . 7 5 4 Penetration Max 1 | . . . . . . . . . . . . 1 Secondary Targets 5 | . . . 3 . . . . 2 . . . . Max Gunslinging Chain 1 | . . . 1 . . . . 1 . . . . Shots Hit Robots 524 | 15 52 18 103 34 29 14 20 71 . 18 105 45 Core Hits 426 | 9 19 15 84 28 12 7 7 69 . 15 127 34 Critical Hits 10 | . . 1 2 . 1 . . . . . . 6 Critical Kills 3 | . . 1 . . . . . . . . . 2 Critical Parts Destroyed 5 | . . . 1 . . . . . . . . 4 Melee Attacks 21 | . . . . . 10 . . . . . . 11 Impact . | . . . . . . . . . . . . . Slashing 11 | . . . . . . . . . . . . 11 Piercing . | . . . . . . . . . . . . . Sneak Attacks 4 | . . . . . 3 . . . . . . 1 Combat Hostiles . | . . . . . . . . . . . . . Follow-up Attacks . | . . . . . . . . . . . . . Damage Inflicted 12888 | 289 728 433 2659 1157 445 260 295 1612 . 230 3548 1232 Guns 7834 | 249 640 222 1976 589 395 260 295 1395 . 230 1249 334 Cannons 1069 | . . . . . . . . . . . 746 323 Explosions 3409 | 40 87 211 683 568 50 . . 217 . . 1553 . Melee 575 | . . . . . . . . . . . . 575 Ramming 1 | . 1 . . . . . . . . . . . Kinetic 3302 | 122 . . . . 10 . . 878 . 171 1464 657 Thermal 4117 | 40 640 223 683 446 200 154 210 489 . 59 973 . Explosive 1079 | . 87 . . 122 . . . . . . 870 . Electromagnetic 3814 | 127 . 210 1976 589 235 106 85 245 . . 241 . Impact . | . . . . . . . . . . . . . Slashing 575 | . . . . . . . . . . . . 575 Piercing . | . . . . . . . . . . . . . Highest Corruption 3 | . . . 1 1 1 . . 3 3 3 3 3 Average Corruption 1 | . . . 1 1 1 . . 3 3 3 1 3 Corruption Purged . | . . . . . . . . . . . . . Effects 68 | . . . 6 4 4 . . 6 4 19 2 23 Message Errors 22 | . . . 2 2 1 . . 1 2 4 1 9 Matter Fused 15 | . . . . . . . . . 1 7 . 7 Heat Flow Errors 4 | . . . . . . . . 1 1 2 . . Energy Discharges 16 | . . . 2 1 3 . . 1 . 4 1 4 Data Loss (minor) 8 | . . . 2 1 . . . 1 . 1 . 3 Targeting Errors 2 | . . . . . . . . 1 . 1 . . Weapon Failures 1 | . . . . . . . . 1 . . . . Overload Shots 4 | . . . . . . 3 . 1 . . . . Overflow Damage 231 | . . . 21 110 . . . 31 . . 69 . Projectiles . | . . . . . . . . . . . . . Explosions 231 | . . . 21 110 . . . 31 . . 69 . Melee . | . . . . . . . . . . . . . Knockbacks 18 | . . . . . . . . . . . 16 2 Impact . | . . . . . . . . . . . . . Kinetic 16 | . . . . . . . . . . . 14 2 Secondary 2 | . . . . . . . . . . . 2 . Self-Inflicted Damage 614 | 40 . 77 119 289 . . . 89 . . . . Shots 16 | 1 . 2 4 7 . . . 2 . . . . Rammed 2 | . 1 . 1 . . . . . . . . . Targets Rammed 2 | . 1 . 1 . . . . . . . . . Kicked . | . . . . . . . . . . . . . Crushed . | . . . . . . . . . . . . . Highest Temperature 404 | 12 404 120 112 . 60 33 3 100 231 263 335 . Average Temperature 63 | 12 108 33 31 . 29 10 3 23 121 157 69 . Received Heat Transfer 1654 | . 141 18 225 141 . 21 63 302 . 12 368 363 Effects 4 | . 3 . . . . . . . . . 1 . Shutdowns 2 | . 2 . . . . . . . . . . . Energy Bleed 1 | . . . . . . . . . . . 1 . Damage (minor) 1 | . 1 . . . . . . . . . . . Siege Activations . | . . . . . . . . . . . . . Robots Corrupted . | . . . . . . . . . . . . . Combat Hostiles . | . . . . . . . . . . . . . Parts Fried 12 | . . . 6 1 1 . . . . . 4 . Impact Corruptions . | . . . . . . . . . . . . . Robots Melted . | . . . . . . . . . . . . . Combat Hostiles . | . . . . . . . . . . . . . Parts Melted 10 | . 4 . . . . . 2 1 . . 3 . Heat Transferred 6960 | 50 1887 337 850 700 447 272 370 668 . 111 1268 . Parts Sabotaged . | . . . . . . . . . . . . . Parts Stolen . | . . . . . . . . . . . . . Parts Stripped . | . . . . . . . . . . . . . Power Chain Reactions 26 | 1 . 4 9 6 1 . . 4 . . 1 . Missiles Intercepted . | . . . . . . . . . . . . . Alert | -11 -10 -9 -9 -9 -9 -7 -7 -7 -7 -6 -6 -6 ------- Run | Scr Mat Mat Sto Gar Rec Fac Low Low Dat Pro Fac Ext Peak Influence 1284 | 45 173 142 702 1207 677 1284 . . . . 737 409 Average Influence 353 | 23 86 36 191 825 569 1130 . . . . 187 179 Maximum Alert Level 4 | . . . 3 4 2 4 . . . . 3 2 Low Security (%) 49 | 100 100 100 62 . . . . . . . 61 60 Level 1 12 | . . . 12 . . . . . . . 26 38 Level 2 22 | . . . 24 29 100 . . . . . 11 1 Level 3 7 | . . . . 50 . 31 . . . . . . Level 4 7 | . . . . 19 . 68 . . . . . . Level 5 . | . . . . . . . . . . . . . High Security . | . . . . . . . . . . . . . Max Security . | . . . . . . . . . . . . . Squads Dispatched 17 | . 3 . 6 . . 3 . . . . 4 1 Investigation 8 | . 3 . 5 . . . . . . . . . Extermination 3 | . . . . . . 1 . . . . 2 . Reinforcement 4 | . . . . . . 1 . . . . 2 1 Assault 1 | . . . . . . 1 . . . . . . Garrison 1 | . . . 1 . . . . . . . . . Intercept . | . . . . . . . . . . . . . Construction Impeded . | . . . . . . . . . . . . . Haulers Reinforced 2 | . . . . . . . . . . . 2 . Stealth | -11 -10 -9 -9 -9 -9 -7 -7 -7 -7 -6 -6 -6 --------- Run | Scr Mat Mat Sto Gar Rec Fac Low Low Dat Pro Fac Ext Distress Signals 10 | . . 1 6 . . . . . . . 1 2 Communications Jammed . | . . . . . . . . . . . . . Distress Signals . | . . . . . . . . . . . . . Times Spotted 213 | . 11 9 38 19 33 14 2 27 . 7 25 28 Peak Tracking Total 7 | . 3 5 4 7 6 5 2 6 . 4 6 7 Tactical Retreats 12 | . 1 1 2 1 . 1 . 2 . . 1 3 Traps | -11 -10 -9 -9 -9 -9 -7 -7 -7 -7 -6 -6 -6 ------- Run | Scr Mat Mat Sto Gar Rec Fac Low Low Dat Pro Fac Ext Traps Triggered 12 | . 2 . 5 . . . . . . . 3 2 Indirectly 1 | . . . . . . . . . . . 1 . Trap Hack Attempts . | . . . . . . . . . . . . . Triggered . | . . . . . . . . . . . . . Disarmed . | . . . . . . . . . . . . . Reprogrammed . | . . . . . . . . . . . . . Reused . | . . . . . . . . . . . . . Traps Extracted . | . . . . . . . . . . . . . Installed . | . . . . . . . . . . . . . Triggered 1 | . . . . . . . . 1 . . . . Machines | -11 -10 -9 -9 -9 -9 -7 -7 -7 -7 -6 -6 -6 ---------- Run | Scr Mat Mat Sto Gar Rec Fac Low Low Dat Pro Fac Ext Machines Disabled 45 | . 3 2 8 5 . 2 . . . . 25 . Max in Single Turn 12 | . 2 1 1 2 . 1 . . . . 12 . Garrison Access 1 | . . . . . . . . . . . 1 . Garrison Relay 3 | . . . . 3 . . . . . . . . Phase Generator 1 | . . . . 1 . . . . . . . . Machines Sabotaged . | . . . . . . . . . . . . . Garrisons Compromised . | . . . . . . . . . . . . . Overloaded Fab Kills . | . . . . . . . . . . . . . Fab Network Shutdowns . | . . . . . . . . . . . . . Hacking | -11 -10 -9 -9 -9 -9 -7 -7 -7 -7 -6 -6 -6 --------- Run | Scr Mat Mat Sto Gar Rec Fac Low Low Dat Pro Fac Ext Machines Accessed 57 | . 3 5 18 . 13 4 1 2 4 . 5 2 Terminals 33 | . 2 4 14 . 6 2 . . . . 3 2 Fabricators 1 | . . . . . . 1 . . . . . . Repair Stations 5 | . 1 1 2 . . 1 . . . . . . Recycling Units 9 | . . . 1 . 7 . . . . . 1 . Scanalyzers . | . . . . . . . . . . . . . Garrison Access 2 | . . . 1 . . . . . . . 1 . Total Hacks 179 | . 9 24 58 . 37 7 1 7 22 . 11 3 Successful 118 | . 4 18 33 . 19 6 1 7 22 . 7 1 Failed 61 | . 5 6 25 . 18 1 . . . . 4 2 Catastrophic 6 | . 1 . 4 . . . . . . . . 1 Database Lockouts . | . . . . . . . . . . . . . Manual 87 | . 4 17 34 . 18 4 . 1 . . 6 3 Terminals 114 | . 7 20 49 . 24 4 . . . . 7 3 Fabricators 1 | . . . . . . 1 . . . . . . Repair Stations 14 | . 2 4 6 . . 2 . . . . . . Recycling Units 17 | . . . 2 . 13 . . . . . 2 . Scanalyzers . | . . . . . . . . . . . . . Garrison Access 3 | . . . 1 . . . . . . . 2 . Terminal Hacks 50 | . 1 6 10 . 3 . 1 7 22 . . . Record 17 | . . . . . . . . 6 11 . . . Part Schematic 4 | . . . . . . . . . 4 . . . Robot Schematic 4 | . . . . . . . . . 4 . . . Robot Analysis 1 | . 1 . . . . . . . . . . . Prototype ID Bank 4 | . . . . . 1 . . . 3 . . . Open Door 5 | . . . 3 . . . 1 1 . . . . Branch Access Points 1 | . . 1 . . . . . . . . . . Garrison Index 1 | . . . . . 1 . . . . . . . Unreport Threat 7 | . . 4 3 . . . . . . . . . Locate Traps 2 | . . . 2 . . . . . . . . . Recall Investigation 2 | . . . 2 . . . . . . . . . Hauler Manifests 1 | . . 1 . . . . . . . . . . Zone Layout 1 | . . . . . 1 . . . . . . . Fabricator Hacks 1 | . . . . . . 1 . . . . . . Network Status 1 | . . . . . . 1 . . . . . . Repair Station Hacks 10 | . 1 4 3 . . 2 . . . . . . Scan Component 6 | . 1 2 2 . . 1 . . . . . . Repair 4 | . . 2 1 . . 1 . . . . . . Recycling Unit Hacks 11 | . . . 2 . 8 . . . . . 1 . Report Inventory 1 | . . . 1 . . . . . . . . . Retrieve Matter 1 | . . . . . 1 . . . . . . . Retrieve Components 9 | . . . 1 . 7 . . . . . 1 . Scanalyzer . | . . . . . . . . . . . . . Garrison Access Hacks 3 | . . . 1 . . . . . . . 2 . Unlock Access 1 | . . . 1 . . . . . . . . . Seal Access 1 | . . . . . . . . . . . 1 . Coupler Status 1 | . . . . . . . . . . . 1 . Unauthorized Hacks 43 | . 2 8 17 . 8 3 . . . . 4 1 Terminals 42 | . 2 8 17 . 7 3 . . . . 4 1 Track 21 | . 1 4 6 . 4 2 . . . . 3 1 Assimilate 2 | . . 1 . . . 1 . . . . . . Botnet 13 | . . 1 9 . 3 . . . . . . . Detonate 1 | . . 1 . . . . . . . . . . Operators 5 | . 1 1 2 . . . . . . . 1 . Fabricators . | . . . . . . . . . . . . . Repair Stations . | . . . . . . . . . . . . . Recycling Units 1 | . . . . . 1 . . . . . . . Tunnel 1 | . . . . . 1 . . . . . . . Scanalyzers . | . . . . . . . . . . . . . Garrison Access . | . . . . . . . . . . . . . Data Cores Recovered . | . . . . . . . . . . . . . Used . | . . . . . . . . . . . . . Hacking Detections 45 | . 3 5 17 . 9 4 . . . . 5 2 Full Trace Events 7 | . 1 . 6 . . . . . . . . . Feedback Events 1 | . . . 1 . . . . . . . . . Corruption 1 | . . . 1 . . . . . . . . . Feedback Blocked . | . . . . . . . . . . . . . Robot Schematics Acquired 4 | . . . . . . . . . 4 . . . Robots Built . | . . . . . . . . . . . . . Matter . | . . . . . . . . . . . . . Time . | . . . . . . . . . . . . . Total Robot Build Rating . | . . . . . . . . . . . . . Part Schematics Acquired 4 | . . . . . . . . . 4 . . . Parts Built . | . . . . . . . . . . . . . Matter . | . . . . . . . . . . . . . Time . | . . . . . . . . . . . . . Total Part Build Rating . | . . . . . . . . . . . . . Parts Repaired 4 | . . 2 1 . . 1 . . . . . . Time 152 | . . 76 51 . . 25 . . . . . . Parts Recycled . | . . . . . . . . . . . . . Recycled Matter . | . . . . . . . . . . . . . Retrieved Matter . | . . . . . . . . . . . . . Retrieved Components 23 | . . . 9 . 12 . . . . . 2 . Parts Scanalyzed . | . . . . . . . . . . . . . Part Schematics Acquired . | . . . . . . . . . . . . . Parts Damaged . | . . . . . . . . . . . . . Bothacking | -11 -10 -9 -9 -9 -9 -7 -7 -7 -7 -6 -6 -6 ------------ Run | Scr Mat Mat Sto Gar Rec Fac Low Low Dat Pro Fac Ext Used RIF Installer 1 | . . . . 1 . . . . . . . . Robots Hacked 6 | . . . . . 2 . . . . . . 4 Non-combat 4 | . . . . . 2 . . . . . . 2 Combat 2 | . . . . . . . . . . . . 2 Robot Hacks Applied 8 | . . . . . 4 . . . . . . 4 parse_system 4 | . . . . . 2 . . . . . . 2 find_recycling 1 | . . . . . 1 . . . . . . . ignore_parts 3 | . . . . . 1 . . . . . . 2 Relay Couplers Released 15 | . . . . 15 . . . . . . . . Machine Destruction 15 | . . . . 15 . . . . . . . . Robots Rewired 33 | . . . . 1 17 . . . . . . 15 Allies Hacked 3 | . . . . . . . 2 . . . 1 . Hacks Repelled . | . . . . . . . . . . . . . Allies | -11 -10 -9 -9 -9 -9 -7 -7 -7 -7 -6 -6 -6 -------- Run | Scr Mat Mat Sto Gar Rec Fac Low Low Dat Pro Fac Ext Total Allies 50 | . . 1 11 1 17 1 . . . 1 3 15 Largest Group 17 | . . 1 10 1 17 15 5 2 . 1 3 6 Highest-Rated Group 209 | . . 10 99 16 209 195 45 17 . 94 94 181 Highest-Rated Ally 99 | . . 10 99 16 24 24 10 10 . 94 94 37 Total Orders . | . . . . . . . . . . . . . Ally Attacks 316 | . . . 47 . 146 30 . . . 13 29 51 Total Damage 4661 | . . . 738 . 1038 499 . . . 374 790 1222 Kills 61 | . . . 12 . 29 5 . . . 2 5 8 Allies Corrupted . | . . . . . . . . . . . . . Allies Melted . | . . . . . . . . . . . . . Intel | -11 -10 -9 -9 -9 -9 -7 -7 -7 -7 -6 -6 -6 ------- Run | Scr Mat Mat Sto Gar Rec Fac Low Low Dat Pro Fac Ext Robot Analysis Total 1 | . 1 . . . . . . . . . . . Derelict Logs Recovered 7 | . . . . . . . 3 2 . 2 . . Drone Launches 16 | . . . 16 . . . . . . . . . Drone Recoveries . | . . . . . . . . . . . . . Exploration | -11 -10 -9 -9 -9 -9 -7 -7 -7 -7 -6 -6 -6 ------------- Run | Scr Mat Mat Sto Gar Rec Fac Low Low Dat Pro Fac Ext Turns Passed 12891 | 215 476 964 2195 867 1194 822 440 1940 119 1030 1121 1508 Spaces Moved 8365 | 137 337 521 1167 507 829 772 417 1370 80 715 726 787 Core 294 | 7 . . . 24 . . . 9 . . 80 174 Treads 521 | . . . . . . . . . . . . 521 Legs 2171 | . . . . 275 59 . . 304 80 715 646 92 Wheels 5379 | 130 337 521 1167 208 770 772 417 1057 . . . . Hover . | . . . . . . . . . . . . . Flight . | . . . . . . . . . . . . . Fastest Speed 50 | 50 80 80 80 83 80 85 85 95 150 120 50 50 Average Speed 103 | 78 80 89 85 110 90 87 93 109 150 138 115 132 Slowest Speed 600 | 80 80 90 93 200 120 96 96 600 150 150 152 300 Overloaded Moves . | . . . . . . . . . . . . . Propulsion Burnouts . | . . . . . . . . . . . . . Robots Hopped . | . . . . . . . . . . . . . Cave-ins Triggered 1 | . . . 1 . . . . . . . . . Exploration Rate (%) 58 | 3 42 42 94 91 99 22 64 85 68 75 21 52 Regions Visited 12 Branch Regions 7 Pre-discovered Areas 3 | . . . . . 1 . . . 1 1 . . Known Exits Taken 4 | . . 1 1 . . . 1 . . . 1 . Unknown Exits Taken 7 | 1 1 . . . 1 1 . 1 1 1 . . Scrap Searched 6 | . . . . . . . 1 3 . 2 . . Spaces Dug 31 | . . 30 . . . . . 1 . . . . Terrain Destroyed 322 | 3 47 45 40 86 2 . . 11 . . 79 9 Melee . | . . . . . . . . . . . . . Projectile 10 | . . . . . . . . 1 . . . 9 AOE 312 | 3 47 45 40 86 2 . . 10 . . 79 . Actions | -11 -10 -9 -9 -9 -9 -7 -7 -7 -7 -6 -6 -6 --------- Run | Scr Mat Mat Sto Gar Rec Fac Low Low Dat Pro Fac Ext Total 11731 | 186 444 977 2192 749 1208 899 448 1720 79 737 897 1195 Wait 2210 | . 24 397 849 195 124 83 18 259 . 4 73 184 Move 8353 | 136 337 520 1166 505 828 771 416 1369 79 714 725 787 Hop . | . . . . . . . . . . . . . Pick Up 35 | 6 2 7 5 . . 4 . 3 . . 4 4 Fast Attach 93 | 8 3 6 12 5 9 9 1 12 . 2 5 21 Attach 11 | . 1 1 . 2 1 1 . 2 . . 3 . Detach 3 | . . . . . 1 . 1 . . . 1 . Swap 73 | 2 7 9 19 2 6 6 1 3 . 2 12 4 Drop 117 | 5 12 11 27 1 13 12 1 8 . 3 14 10 Fire 456 | 29 58 26 96 31 29 13 10 63 . 12 60 29 Melee 21 | . . . . . 10 . . . . . . 11 Ram 1 | . . . 1 . . . . . . . . . Kick . | . . . . . . . . . . . . . Crush . | . . . . . . . . . . . . . Escape Stasis 38 | . . . 8 . . . . . . . . 30 Rewire 312 | . . . 1 8 187 . . 1 . . . 115 Trap . | . . . . . . . . . . . . . Miscellaneous 8 | . . . 8 . . . . . . . . . Route ------- -11/Scrapyard -10/Materials -9/Materials (discovered 3 exits: *Min x2 / *Sto) -9/Storage (discovered 2 exits: [*Mat] / Gar) -9/Garrison (discovered 3 exits: *Rec x3) -9/Recycling -7/Factory (discovered 2 exits: *Fac / *Low) -7/Lower Caves -7/Lower Caves -7/Data Miner -6/Proximity Caves -6/Factory (discovered 4 exits: Fac x2 / *Low / *Ext) -6/Extension History --------- Turn | Location | Event 2 | -11/Scrapyard | Discovered new exit (range 16) 216 | -11/Scrapyard | Entered Materials 316 | -10/Materials | Build established: Mutant 623 | -10/Materials | Discovered new exit (range 7) 692 | -10/Materials | Entered another Materials area 692 | -9/Materials | Evolved 2 slots: Propulsion x1, Utility x1 754 | -9/Materials | Build established: Scavenger-Mutant 778 | -9/Materials | Identified exit to Mines 778 | -9/Materials | Identified exit to Storage 1061 | -9/Materials | Build established: Mutant 1300 | -9/Materials | Repaired Hrd. Medium Armor Plating 1339 | -9/Materials | Repaired Hrd. Medium Armor Plating 1656 | -9/Materials | Entered Storage 2238 | -9/Storage | Assisted by bots powering up and referring to "LRC-V3" 2527 | -9/Storage | Repaired Imp. EM Shotgun 2892 | -9/Storage | Build established: Scavenger-Mutant 3043 | -9/Storage | Destroyed 7 combat bots 3082 | -9/Storage | Met 01-MTF 3100 | -9/Storage | Discovered new exit (range 6) 3327 | -9/Storage | Allies destroyed 01-MTF 3332 | -9/Storage | Found 01-MTF's Shockpuncher 3353 | -9/Storage | Crushed by falling debris 3739 | -9/Storage | Build established: Mutant 3819 | -9/Storage | Garrison activated, responded to threat 3850 | -9/Storage | Identified exit to Garrison 3851 | -9/Storage | Entered Garrison 4093 | -9/Garrison | Build established: Scavenger-Mutant 4162 | -9/Garrison | Triggered checkpoint 4178 | -9/Garrison | Triggered checkpoint 4216 | -9/Garrison | Triggered checkpoint 4303 | -9/Garrison | Phase Generator disabled 4303 | -9/Garrison | Discovered new exit (range 6) 4334 | -9/Garrison | Lost 5 parts (1n2u2w) 4415 | -9/Garrison | Garrison Relay disabled 4474 | -9/Garrison | Triggered checkpoint 4507 | -9/Garrison | Discovered new exit (range 11) 4556 | -9/Garrison | Triggered checkpoint 4570 | -9/Garrison | Garrison Relay disabled 4658 | -9/Garrison | Garrison Relay disabled 4684 | -9/Garrison | Discovered new exit (range 15) 4711 | -9/Garrison | Installed Relay Interface Framework 4718 | -9/Garrison | Entered Recycling 4777 | -9/Recycling | Spotter reported a threat 4783 | -9/Recycling | Spotter reported a threat 4784 | -9/Recycling | Spotter reported a threat 4793 | -9/Recycling | Spotter reported a threat 4795 | -9/Recycling | Spotter reported a threat 4796 | -9/Recycling | Spotter reported a threat 4836 | -9/Recycling | Spotter reported a threat 4846 | -9/Recycling | Spotter reported a threat 4880 | -9/Recycling | Spotter reported a threat 4903 | -9/Recycling | Spotter reported a threat 4933 | -9/Recycling | Spotter reported a threat 4933 | -9/Recycling | Spotter reported a threat 4941 | -9/Recycling | Spotter reported a threat 4957 | -9/Recycling | Spotter reported a threat 4966 | -9/Recycling | Spotter reported a threat 4970 | -9/Recycling | Spotter reported a threat 5045 | -9/Recycling | Spotter reported a threat 5062 | -9/Recycling | Spotter reported a threat 5071 | -9/Recycling | Spotter reported a threat 5080 | -9/Recycling | Spotter reported a threat 5100 | -9/Recycling | Spotter reported a threat 5155 | -9/Recycling | Spotter reported a threat 5155 | -9/Recycling | Spotter reported a threat 5155 | -9/Recycling | Spotter reported a threat 5156 | -9/Recycling | Spotter reported a threat 5177 | -9/Recycling | Discovered new exit (range 16) 5283 | -9/Recycling | Spotter reported a threat 5284 | -9/Recycling | Spotter reported a threat 5284 | -9/Recycling | Spotter reported a threat 5284 | -9/Recycling | Spotter reported a threat 5337 | -9/Recycling | Spotter reported a threat 5338 | -9/Recycling | Spotter reported a threat 5339 | -9/Recycling | Spotter reported a threat 5343 | -9/Recycling | Build established: Commander-Mutant 5386 | -9/Recycling | Spotter reported a threat 5391 | -9/Recycling | Spotter reported a threat 5391 | -9/Recycling | Spotter reported a threat 5411 | -9/Recycling | Spotter reported a threat 5444 | -9/Recycling | Spotter reported a threat 5547 | -9/Recycling | Spotter reported a threat 5548 | -9/Recycling | Spotter reported a threat 5555 | -9/Recycling | Spotter reported a threat 5572 | -9/Recycling | Spotter reported a threat 5625 | -9/Recycling | Spotter reported a threat 5673 | -9/Recycling | Spotter reported a threat 5678 | -9/Recycling | Spotter reported a threat 5748 | -9/Recycling | Spotter reported a threat 5779 | -9/Recycling | Spotter reported a threat 5779 | -9/Recycling | Spotter reported a threat 5779 | -9/Recycling | Spotter reported a threat 5780 | -9/Recycling | Spotter reported a threat 5912 | -9/Recycling | Entered Factory 5912 | -7/Factory | Accompanied by 14 allies 5912 | -7/Factory | Evolved 4 slots: Power x1, Propulsion x1, Utility x2 6013 | -7/Factory | Discovered new exit (range 12) 6539 | -7/Factory | Repaired Imp. EM Shotgun 6701 | -7/Factory | Discovered new exit (range 11) 6712 | -7/Factory | First assault squad dispatched 6734 | -7/Factory | Entered Lower Caves 6734 | -7/Lower Caves | Accompanied by 5 allies 6777 | -7/Lower Caves | Identified exit to Lower Caves 6896 | -7/Lower Caves | Learned 8 Factory zone layouts 6938 | -7/Lower Caves | Learned 4 Factory zone layouts 7030 | -7/Lower Caves | Encountered a Warlord checkpoint 7137 | -7/Lower Caves | Build established: Mutant 7174 | -7/Lower Caves | Entered another Lower Caves area 7174 | -7/Lower Caves | Accompanied by 2 allies 7342 | -7/Lower Caves | Learned location of 2 exits from Factory 7359 | -7/Lower Caves | Learned 8 Factory zone layouts 7359 | -7/Lower Caves | Learned 8 Research zone layouts 7359 | -7/Lower Caves | Learned Research emergency access door positions 8517 | -7/Lower Caves | Attracted the attention of an 0b10 checkpoint 8546 | -7/Lower Caves | Lost 3 parts (2n1w) 8637 | -7/Lower Caves | Lost 3 parts (2p1u) 8927 | -7/Lower Caves | Build established: Scavenger-Mutant 8946 | -7/Lower Caves | Discovered new exit (range 12) 9114 | -7/Lower Caves | Entered Data Miner 9114 | -7/Data Miner | Discovered new exit (range 6) 9143 | -7/Data Miner | Met Data Miner 9173 | -7/Data Miner | Learned location of Section 7 (-2) 9173 | -7/Data Miner | Acquired the access code to Warlord's prototype stash 9200 | -7/Data Miner | Received God Mode back door access code from Data Miner 9233 | -7/Data Miner | Entered Proximity Caves 9233 | -6/Proximity Caves | Learned 4 Factory zone layouts 9434 | -6/Proximity Caves | Spotted B-75 Beast 9436 | -6/Proximity Caves | Escorted by Enhanced Grunt 9909 | -6/Proximity Caves | Core integrity fell below 50% 10225 | -6/Proximity Caves | Discovered new exit (range 8) 10263 | -6/Proximity Caves | Entered Factory 10263 | -6/Factory | Accompanied by 1 ally 10263 | -6/Factory | Evolved 2 slots: Utility x2 10264 | -6/Factory | Identified exit to Lower Caves 10265 | -6/Factory | Identified exit to Factory 10266 | -6/Factory | Identified exit to Extension 11307 | -6/Factory | Spotted B-75 Beast 11352 | -6/Factory | Core integrity fell below 50% 11357 | -6/Factory | Allied Derelicts emerged from ambush trap array 11375 | -6/Factory | Lost 12 parts (2p3n5u2w) 11384 | -6/Factory | Entered Extension 11619 | -6/Extension | Build established: Mutant 11661 | -6/Extension | Core integrity fell below 20% 11746 | -6/Extension | Lost 4 parts (1n3u) 12047 | -6/Extension | Build established: Scavenger-Mutant 12125 | -6/Extension | Spotted B-75 Beast 12309 | -6/Extension | Disrupted transfer network 12883 | -6/Extension | Spotted B-75 Beast 12892 | -6/Extension | Destroyed by S-27 Virus with Autogun Last Messages --------------- L7-MXU(l) destroyed. HV Slug penetrates T-07 Excavator. T-07 Excavator destroyed. HV Slug penetrates K-01 Serf. K-01 Serf suffers critical hit. K-01 Serf destroyed. HV Slug penetrates U-05 Engineer. U-05 Engineer suffers critical hit. Destroyed Wheel. U-05 Engineer knocked back. U-05 Engineer destroyed. Acquired 6 matter. Imp. Heat Sink destroyed. C-30 ARC bursts open, deploying its payload. S-27 Virus unfolds itself. B-75 Beast suffers critical hit. T1-6YR(g) destroyed. 5S-F89(h) destroyed. U-05 Engineer destroyed. Adv. Heat Sink destroyed. Map ----- +----------------------------------------------------+ | ???????????????????# #?????????????????????? | | ???????????????????# #?????????????????????? | | ???????????????????# ^#?????????????????????? | | ???????????????????# ^ ^ #?????????????????????? | | ???????????????????# #?????????????????????? | | ???????????????????# #?????????????????????? | | ???????????????????# #?????????????????????? | | ???????????????????# ![#?????????????????????? | | ???????????????????#######%#?????????????????????? | | ?????????????????????????#%#?????????????????????? | | ?????????????????????????# #?????????????????????? | | ?????????????????????????# #??##?????????????????? | | ????????????????????????## ### ## #??????????????? | | ???????????????????????#"" "" "?????????????? | | ???????????????????????# " " "????????????? | | ???????????????????????# h Y ????????????? | | ???????????????????????# Y ???????????? | | ########################| ???????????? | | *% ??????????? | | % ??????????? | | =/%==%t ??????????? | | % |%=%* * s ?????????? | | =%! ssBB ?????????? | | #+#####################; BB BB #????????? | | # #???????????????????## BB #????????? | | #????????????????????# @ #????????? | | ###????????#???????????# #????????? | | #########!!###?????????# #????????? | | " ""#?????????######T#"""######?????????? | | """""""""""""#????????????????#??????????????????? | | #############????????????????????????????????????? | | | | | | | | | | | | | | | | | | | | | | | | | | | | | | | | | | | | | | | +----------------------------------------------------+ Best States ------------- Heat Dissipation 112 Coolant Potential 50 Energy Generation 37 Energy Capacity 505 Matter Stores 300 Matter Capacity 300 Sight Range 16 Terrain Scan Range 16 Terrain Scan Density 60 Power Amplification 30 Armor Coverage 450 Resistance: TH 30 Evasion (%) 50 Targeting Accuracy 14 Armor Integrity Analysis 33 Recoil Reduction 4 Kinecelleration 30 Item Schematics ----------------- Combat Drone Bay | -7/Data Miner | Free Lgt. Regenerative Plating | -7/Data Miner | Free Exp. Sensor Array | -7/Data Miner | Free Tactical Coordination Suite | -7/Data Miner | Free Robot Schematics ------------------ S-27 Virus | -7/Data Miner | Free G-50 Soldier | -7/Data Miner | Free L-41 Fighter | -7/Data Miner | Free I-36 Angel | -7/Data Miner | Free Fabricated ------------ Nothing Alien Tech Used ----------------- None Achievements -------------- It Was An Accident, I Swear \\IAMDERELICT Challenges ------------ None Game ------ Seed PowerBiocellHammer Manual? 0 Play Time 02:13:22 Cumulative 39.8 hours Start 2020.07.11 @ 20:51:46 End 2020.07.11 @ 23:52:53 Sessions 1 Manual Loads 0 Difficulty Rogue Special Mode None Game No. 31 Rogue 31 Adventurer 0 Explorer 0 Win Type - Total 0 Types 0/0/0/0/0/0/0 Lore% 43 Gallery% 38 Achievement% 33 Wizard Run 0 Options --------- ASCII 0 Keyboard 0 Movement Numpad Keybinds 0 Fullscreen 2 Font 18/TerminusBold Map View 76x50 Tactical HUD 0 Map Filters NONE Filters NONE Steam 1 RUN: 63021e9b-6ed0-4aff-aea6-5d67671735bc